Cogmind - Beta 14 @@@ ROGUE MODE // 2025.01.01 @ 23:51:54 Player: nado Result: Destroyed by G-47 Trooper with Particle Gun Performance ------------- Evolutions (0) 0 Regions Visited (1) 200 Robots Destroyed (13) 65 Value Destroyed (280) 280 Prototype IDs (0) 0 Alien Tech Used (0) 0 Bonus (0) 0 TOTAL SCORE: 545 Bonus ------- None Cogmind --------- Core Integrity 0/250 Matter 265/300 Energy 125/125 System Corruption 0% Temperature Cool (79) Movement Treading (480) Ox4 Location -10/Materials Parts ------- > --- POWER (1) -------- Light Ion Engine > --- PROPULSION (2) --- Light Treads > --- UTILITY (2) ------ Huge Storage Unit Targeting Computer > --- WEAPON (2) ------- Small Laser Light Assault Rifle > --- INVENTORY (25) --- Ion Engine Ion Engine Light Ion Engine Wheel Compact Wheel Small Storage Unit Backup Laser I Peak State ------------ > --- POWER ------------ Ion Engine > --- PROPULSION ------- Light Treads Light Treads > --- UTILITY ---------- Huge Storage Unit Targeting Computer > --- WEAPON ----------- Light Assault Rifle Light Assault Rifle > --- INVENTORY -------- Ion Engine Light Ion Engine Wheel Compact Wheel Small Storage Unit Small Laser Backup Laser I [Rating: 7] Favorites ----------- Power Ion Engine Engine Ion Engine Propulsion Light Treads Treads Light Treads Utility Huge Storage Unit Storage Huge Storage Unit Processor Targeting Computer Weapon Light Assault Rifle Energy Gun Small Laser Ballistic Gun Light Assault Rifle Build | -11 -10 ------- Run | Yrd Mat Slots Evolved . | . . Power . | . . Propulsion . | . . Utility . | . . Weapon . | . . Parts Attached 12 | 5 7 Power 4 | 1 3 Engine 4 | 1 3 Core . | . . Reactor . | . . Propulsion 2 | 2 . Treads 2 | 2 . Leg . | . . Wheel . | . . Hover . | . . Flight . | . . Utility 3 | 1 2 Device . | . . Storage 2 | 1 1 Processor 1 | . 1 Hackware . | . . Protection . | . . Artifact . | . . Weapon 3 | 1 2 Energy Gun 1 | . 1 Energy Cannon . | . . Ballistic Gun 2 | 1 1 Ballistic Cannon . | . . Launcher . | . . Special Weapon . | . . Impact Weapon . | . . Slashing Weapon . | . . Piercing Weapon . | . . Special Melee Weapon . | . . Unidentified Prototypes . | . . Parts Lost 3 | . 3 Power 1 | . 1 Propulsion 1 | . 1 Utility . | . . Weapon 1 | . 1 Highest Loss Streak 2 | . 2 To Critical Strikes . | . . Average Slot Usage (%) 89 | . 89 Engine 13 | . 13 Treads 24 | . 24 Storage 14 | . 14 Processor 11 | . 11 Energy Gun 2 | . 2 Ballistic Gun 21 | . 21 Peak Build Rating 7 | 5 7 Average Rating 6 | 3 6 On Entrance 2 | . 5 Naked Turns . | . . Heaviest Build 87 | 11 87 Greatest Support 40 | 40 40 Greatest Overweight (x) 4 | 1 4 Average Overweight (x) 2 | . 2 Largest Inventory Capacity 25 | 8 25 Average Capacity 24 | 7 24 Most Carried 8 | 5 8 Average Carried 7 | 3 7 Final Capacity 25 | 8 25 Final Carried 7 | 5 7 Class Distribution -------------------- 100% | Mutant Dominant Class ---------------- Mutant | -10/Materials Resources | -11 -10 ----------- Run | Yrd Mat Matter Collected 363 | 247 116 Remotely . | . . Salvage Created 290 | . 290 Parts 28 | . 28 Haulers Intercepted . | . . Recyclers Shooed 1 | . 1 Parts Field Recycled . | . . Retrieved Matter . | . . Parts Self-Destructed . | . . Prevented . | . . Kills | -11 -10 ------- Run | Yrd Mat Combat Hostiles Destroyed 13 | . 13 Guns 12 | . 12 AOE 1 | . 1 Classes Destroyed 2 | . 2 Swarmer 8 | . 8 Grunt 5 | . 5 Best Kill Streak 3 | . 3 Combat Bots Only 3 | . 3 Max Kills in Single Turn 1 | . 1 Gunslinging . | . . Exploded 1 | . 1 Melee . | . . Uniques/NPCs Destroyed . | . . Combat | -11 -10 -------- Run | Yrd Mat Hostile Shots Fired 95 | . 95 Missed 31 | . 31 Damage Taken 789 | . 789 Core 255 | . 255 Absorbed by Shields . | . . Core Remaining (%) 100 | 100 . Volleys Fired 50 | . 50 Largest 2 | . 2 Hottest 60 | . 60 Shots Fired 100 | . 100 Gun 100 | . 100 Cannon . | . . Launcher . | . . Special . | . . Kinetic 96 | . 96 Thermal 4 | . 4 Explosive . | . . Electromagnetic . | . . Robot Hit Streak 10 | . 10 Robot Miss Streak 4 | . 4 Penetration Max . | . . Secondary Targets . | . . Shots Hit Robots 67 | . 67 Core Hits 26 | . 26 Critical Kills . | . . Critical Parts Destroyed . | . . Critical Strikes . | . . Melee Attacks . | . . Impact . | . . Slashing . | . . Piercing . | . . Sneak Attacks . | . . Combat Hostiles . | . . Follow-up Attacks . | . . Damage Inflicted 677 | 1 676 Guns 579 | . 579 Cannons . | . . Explosions 96 | . 96 Melee . | . . Ramming 2 | 1 1 Kinetic 557 | . 557 Thermal 118 | . 118 Explosive . | . . Electromagnetic . | . . Impact . | . . Slashing . | . . Piercing . | . . Highest Corruption . | . . Average Corruption . | . . Corruption Purged . | . . Corruption Blocked . | . . Overload Shots . | . . Overflow Damage 74 | . 74 Projectiles . | . . Explosions 74 | . 74 Melee . | . . Knockbacks . | . . Impact . | . . Kinetic . | . . Secondary . | . . Self-Inflicted Damage 171 | . 171 Shots 2 | . 2 Rammed 2 | 1 1 Targets Rammed 2 | 1 1 Kicked . | . . Crushed . | . . Highest Temperature 64 | . 64 Average Temperature 13 | . 13 Received Heat Transfer 189 | . 189 Siege Activations . | . . Robots Corrupted . | . . Combat Hostiles . | . . Parts Fried . | . . Impact Corruptions . | . . Robots Melted . | . . Combat Hostiles . | . . Parts Melted . | . . Heat Transferred 100 | . 100 Parts Sabotaged . | . . Parts Stolen . | . . Parts Stripped . | . . Power Chain Reactions . | . . Alert | -11 -10 ------- Run | Yrd Mat Peak Influence 295 | . 295 Initial . | . . Average 64 | . 66 Maximum Alert Level 1 | . 1 Low Security (%) 77 | 100 76 Level 1 22 | . 23 Level 2 . | . . Level 3 . | . . Level 4 . | . . Level 5 . | . . High Security . | . . Max Security . | . . Squads Dispatched 3 | . 3 Investigation . | . . Extermination . | . . Reinforcement 3 | . 3 Assault . | . . Garrison . | . . Intercept . | . . Searches Triggered . | . . Construction Impeded . | . . Haulers Reinforced . | . . Active Scanning Responses . | . . Cargo Convoy Interrupts . | . . Stealth | -11 -10 --------- Run | Yrd Mat Distress Signals 7 | . 7 Communications Jammed . | . . Distress Signals . | . . Times Spotted 28 | . 28 Peak Tracking Total 4 | . 4 Tactical Retreats 3 | . 3 Traps | -11 -10 ------- Run | Yrd Mat Traps Triggered . | . . Indirectly . | . . Trap Hack Attempts . | . . Triggered . | . . Disarmed . | . . Reprogrammed . | . . Reused . | . . Traps Extracted . | . . Installed . | . . Triggered . | . . Machines | -11 -10 ---------- Run | Yrd Mat Machines Disabled 3 | . 3 Max in Single Turn 3 | . 3 Machines Repaired . | . . Machines Dismantled . | . . Machines Sabotaged . | . . Overloaded Fab Kills . | . . Hacking | -11 -10 --------- Run | Yrd Mat Machines Accessed 5 | . 5 Terminals 4 | . 4 Fabricators . | . . Repair Stations 1 | . 1 Recycling Units . | . . Scanalyzers . | . . Garrison Access . | . . Total Hacks 13 | . 13 Successful 3 | . 3 Failed 10 | . 10 Catastrophic 2 | . 2 Database Lockouts . | . . Manual 12 | . 12 Terminals 12 | . 12 Fabricators . | . . Repair Stations 1 | . 1 Recycling Units . | . . Scanalyzers . | . . Garrison Access . | . . Terminal Hacks 2 | . 2 Robot Analysis 2 | . 2 Fabricator Hacks . | . . Repair Station Hacks 1 | . 1 Refit 1 | . 1 Recycling Unit Hacks . | . . Scanalyzer . | . . Garrison Access Hacks . | . . Unauthorized Hacks . | . . Terminals . | . . Fabricators . | . . Repair Stations . | . . Recycling Units . | . . Scanalyzers . | . . Garrison Access . | . . Data Cores Recovered . | . . Used . | . . Hacking Detections 4 | . 4 Full Trace Events 2 | . 2 Feedback Events . | . . Feedback Blocked . | . . Robot Schematics Acquired . | . . Robots Built . | . . Authchips . | . . Time . | . . Total Robot Build Rating . | . . Part Schematics Acquired . | . . Parts Built . | . . Authchips . | . . Time . | . . Total Part Build Rating . | . . Parts Repaired . | . . Time . | . . Parts Recycled . | . . Recycled Matter . | . . Retrieved Matter . | . . Retrieved Components . | . . Parts Scanalyzed . | . . Part Schematics Acquired . | . . Parts Damaged . | . . Bothacking | -11 -10 ------------ Run | Yrd Mat Used RIF Installer . | . . Robots Hacked . | . . Non-combat . | . . Combat . | . . Robot Hacks Applied . | . . Relay Couplers Released . | . . Fabnet Peak Effective % . | . . Robots Rewired . | . . Allies Hacked . | . . Hacks Repelled . | . . Allies | -11 -10 -------- Run | Yrd Mat Total Allies . | . . Largest Group . | . . Highest-Rated Group . | . . Highest-Rated Ally . | . . Total Orders . | . . Ally Attacks . | . . Total Damage . | . . Kills . | . . Allies Corrupted . | . . Allies Melted . | . . Intel | -11 -10 ------- Run | Yrd Mat Robot Analysis Total 2 | . 2 Derelict Logs Recovered . | . . Drone Launches . | . . Drone Recoveries . | . . Exploration | -11 -10 ------------- Run | Yrd Mat Turns Passed 2009 | 75 1934 Spaces Moved 498 | 42 456 Core 7 | 7 . Treads 491 | 35 456 Legs . | . . Wheels . | . . Hover . | . . Flight . | . . Fastest Speed 50 | 50 160 Average Speed 331 | 148 348 Slowest Speed 480 | 160 480 Overloaded Moves . | . . Propulsion Burnouts . | . . Robots Hopped . | . . Cave-ins Triggered . | . . Exploration Rate (%) 42 | 4 80 Regions Visited 1 Branch Regions . Pre-discovered Areas . | . . Known Exits Taken . | . . Unknown Exits Taken 1 | 1 . Scrap Searched . | . . Spaces Dug . | . . Terrain Destroyed 37 | . 37 Melee . | . . Projectile . | . . AOE 37 | . 37 Terrain Rammed . | . . Walls Destroyed . | . . Machines Disabled . | . . Actions | -11 -10 --------- Run | Yrd Mat Total 770 | 52 718 Wait 201 | . 201 Move 497 | 41 456 Hop . | . . Pick Up 6 | 5 1 Fast Attach 7 | 5 2 Attach 3 | . 3 Detach 2 | . 2 Swap 2 | . 2 Drop . | . . Fire 50 | . 50 Melee . | . . Ram . | . . Kick . | . . Crush 2 | 1 1 Escape Stasis . | . . Rewire . | . . Trap . | . . Miscellaneous . | . . Route ------- -11/Scrapyard -10/Materials (discovered 3 exits: [*Mat x2] / [*Min]) History --------- Turn | Location | Event 34 | -11/Scrapyard | Discovered new exit (range 15) 76 | -11/Scrapyard | Entered Materials 316 | -10/Materials | Build established: Mutant 766 | -10/Materials | Discovered new exit (range 7) 815 | -10/Materials | Discovered new exit (range 16) 1458 | -10/Materials | Discovered new exit (range 4) 1559 | -10/Materials | Core integrity fell below 50% 1631 | -10/Materials | Core integrity fell below 20% 2010 | -10/Materials | Destroyed by G-47 Trooper with Particle Gun Last Messages --------------- 01601_ K-01 Serf collects debris. 01601_ U-05 Engineer lays Concrete. 01607_ K-01 Serf collects debris. 01607_ U-05 Engineer lays Concrete. 01607_ U-05 Engineer builds a Wall. 01607_ U-05 Engineer lays Concrete. 01611_ U-05 Engineer builds a Wall. 01613_ O-16 Technician sends out distress signal. 01613_ O-16 Technician: "IFF HANDSHAKE FAILED. SECURING TERMINAL." 01616_ U-05 Engineer builds a Wall. 01620_ U-05 Engineer lays Concrete. 01622_ U-05 Engineer builds a Wall. 01625_ ALERT: Hostiles spotted, dispatching reinforcements to Terminal M006. 01626_ U-05 Engineer builds a Wall. 01632_ S-10 Pest destroyed. 01651_ Lgt. Assault Rifle destroyed. 01653_ G-34 Mercenary destroyed. 01656_ Acquired 16 matter. 01673_ R-06 Scavenger collects Flight Unit. Map ----- +----------------------------------------------------+ | | | | | | | | | | | | | | | | | | | | | | | | | | | | | | | ????????????????????????????????????????????? | | ????????????????###############?????????????? | | ????????????????# ! ######????????? | | ????????????????# T # ######???? | | ????????????????# """ """ + ^^ #???? | | ????????????????# = """ """ # ^ #???? | | ????????????????# """ """ # ##+######? | | ????????????????# ## ## #? | | ????????????????################ ## " #? | | ?????????????????############### ## """ #? | | ?????????? g @ ## "" #? | | ?????????? g o u + """ #? | | ?????????????##### ##########+###+## "" #? | | ????????????????????????????# ## """ #? | | ????????????????????????????# ## """ #? | | ????????????????????????????# ## """ #? | | ????????????????????????????# ## " #? | | ????????????????????????????# ## ?#? | | ????????????????????????????# #########?? | | ????????????????????????????# #?????????? | | ????????????????????????????#####+#?????????? | | ???????????????????????? ???????# #?????????? | | ????????????????????????? ????## ##????????? | | ?????????????????????? ?"""??###" "#####????? | | ?????????????????????+ """ #####+##"""#????? | | ### ?????????????????# """ # % "#????? | | ????????????????# # "##???? | | ????????????????# """ # # #???? | | ????????????????#? """ # ###???? | | ### ?????????????????# """ # "##???? | | #????????????????????# # " #???? | | #????????????????????######## "##???? | | ##????????????????????????### "#????? | | "#??????????????????#############+######????? | | T#??????????????? [ #??????? | +----------------------------------------------------+ Best States ------------- Heat Dissipation 25 Energy Generation 10 Energy Capacity 250 Matter Stores 300 Matter Capacity 300 Sight Range 16 Terrain Scan Density 10 Evasion (%) 40 Targeting Accuracy 5 Recoil Reduction 2 Item Schematics ----------------- None Robot Schematics ------------------ None Fabricated ------------ Nothing Alien Tech Used ----------------- None Achievements -------------- None Challenges ------------ None Game ------ Seed ArchitectSupersonicFlamer Manual? 0 Play Time 00:14:08 Cumulative 58.6 hours Start 2025.01.01 @ 23:34:18 End 2025.01.01 @ 23:51:54 Sessions 1 Manual Loads 0 Difficulty Rogue Special Mode None Game No. 40 Rogue 40 Adventurer 0 Explorer 0 Win Type - Total 0 Types 0/0/0/0/0/0/0/0/0 Lore% 25 Gallery% 31 Achievement% 31 Wizard Run 0 Options --------- Layout 0 ASCII 0 Keyboard 1 Movement Vi Keybinds 0 Fullscreen 2 Font 18/Terminus Map View 76x50 Zoom Use 0% Tactical HUD 1 Map Filters NONE Filters NONE Steam 1 RUN: 2594b89f-0260-471f-ab5c-0f8f79b285b7